[Event "Live Chess"]
[Site "Chess.com"]
[Date "2024.06.01"]
[Round "-"]
[White "WelshTiger"]
[Black "koekoekoe"]
[Result "1-0"]
[WhiteElo "2542"]
[BlackElo "2059"]
[TimeControl "300"]
[EndTime "12:26:53 PDT"]
[Termination "WelshTiger won on time"]

1. e4 {[%clk 0:04:54.4]} 1... d5 {[%clk 0:04:59.9]} 2. exd5 {[%clk 0:04:53.4]}
2... Qxd5 {[%clk 0:04:59.8]} 3. Nc3 {[%clk 0:04:52.7]} 3... Qa5 {[%clk
0:04:59.2]} 4. d4 {[%clk 0:04:51.9]} 4... Nf6 {[%clk 0:04:58.8]} 5. Nf3 {[%clk
0:04:51.4]} 5... Bg4 {[%clk 0:04:57.4]} 6. h3 {[%clk 0:04:49.8]} 6... Bh5 {[%clk
0:04:56.7]} 7. Bd2 {[%clk 0:04:49.4]} 7... c6 {[%clk 0:04:55.6]} 8. g4 {[%clk
0:04:41.7]} 8... Bg6 {[%clk 0:04:54.3]} 9. Ne5 {[%clk 0:04:41.4]} 9... e6 {[%clk
0:04:50.1]} 10. Bg2 {[%clk 0:04:37.3]} 10... Nbd7 {[%clk 0:04:48.7]} 11. Nxd7
{[%clk 0:04:25.9]} 11... Nxd7 {[%clk 0:04:47]} 12. h4 {[%clk 0:04:21.8]} 12...
h6 {[%clk 0:04:45.9]} 13. f4 {[%clk 0:04:13.9]} 13... Bd6 {[%clk 0:04:33.9]} 14.
Qe2 {[%clk 0:03:16.3]} 14... O-O-O {[%clk 0:04:28.6]} 15. O-O-O {[%clk
0:03:14.9]} 15... Qc7 {[%clk 0:04:24.7]} 16. Rhf1 {[%clk 0:03:12.8]} 16... Nb6
{[%clk 0:04:18.8]} 17. f5 {[%clk 0:03:05.3]} 17... exf5 {[%clk 0:04:15.3]} 18.
gxf5 {[%clk 0:03:05.2]} 18... Bh7 {[%clk 0:04:13.8]} 19. Qg4 {[%clk 0:03:01.9]}
19... Rhg8 {[%clk 0:04:09.8]} 20. f6+ {[%clk 0:02:56.4]} 20... Kb8 {[%clk
0:04:06.9]} 21. fxg7 {[%clk 0:02:55]} 21... f5 {[%clk 0:03:54.8]} 22. Qf3 {[%clk
0:02:51]} 22... Qxg7 {[%clk 0:03:50]} 23. Bh3 {[%clk 0:02:43.9]} 23... Rdf8
{[%clk 0:03:22.4]} 24. Bf4 {[%clk 0:02:41.3]} 24... Qc7 {[%clk 0:02:23.8]} 25.
Bxh6 {[%clk 0:02:27.6]} 25... Rf7 {[%clk 0:02:16]} 26. Bg5 {[%clk 0:02:24.4]}
26... Rgf8 {[%clk 0:02:00.5]} 27. d5 {[%clk 0:02:10]} 27... Nc4 {[%clk
0:01:33.1]} 28. dxc6 {[%clk 0:01:46.2]} 28... Qxc6 {[%clk 0:01:18.9]} 29. Qxc6
{[%clk 0:01:43.9]} 29... bxc6 {[%clk 0:01:18.8]} 30. b3 {[%clk 0:01:14.1]} 30...
Ba3+ {[%clk 0:01:17.4]} 31. Kb1 {[%clk 0:01:13.4]} 31... Nb6 {[%clk 0:01:07.1]}
32. Bf4+ {[%clk 0:01:12.5]} 32... Kb7 {[%clk 0:01:06.2]} 33. Bg2 {[%clk
0:01:09]} 33... Bg6 {[%clk 0:00:52.9]} 34. Bf3 {[%clk 0:01:07.5]} 34... Rh7
{[%clk 0:00:40.1]} 35. Ne2 {[%clk 0:00:53.1]} 35... Bh5 {[%clk 0:00:37.5]} 36.
Bxh5 {[%clk 0:00:42.7]} 36... Rxh5 {[%clk 0:00:37.4]} 37. Bg5 {[%clk 0:00:42.2]}
37... Rh7 {[%clk 0:00:31.6]} 38. Nd4 {[%clk 0:00:41.1]} 38... Nd5 {[%clk
0:00:29.1]} 39. Bd2 {[%clk 0:00:36.6]} 39... f4 {[%clk 0:00:27.5]} 40. c4 {[%clk
0:00:33.8]} 40... Ne3 {[%clk 0:00:15.2]} 41. Bxe3 {[%clk 0:00:32.6]} 41... fxe3
{[%clk 0:00:15.1]} 42. Rxf8 {[%clk 0:00:28]} 42... Rxh4 {[%clk 0:00:04.9]} 43.
Rf7+ {[%clk 0:00:25.3]} 43... Kb6 {[%clk 0:00:03.8]} 44. Nc2 {[%clk 0:00:19.2]}
44... Bc5 {[%clk 0:00:02.4]} 45. Re1 {[%clk 0:00:17.8]} 1-0

[Event "Live Chess"]
[Site "Chess.com"]
[Date "2024.06.01"]
[Round "-"]
[White "NeilDruggan73"]
[Black "MellowAesthetic"]
[Result "0-1"]
[WhiteElo "1733"]
[BlackElo "2075"]
[TimeControl "300"]
[EndTime "12:26:58 PDT"]
[Termination "MellowAesthetic won on time"]

1. d4 {[%clk 0:04:56.9]} 1... Nf6 {[%clk 0:04:58.4]} 2. Bg5 {[%clk 0:04:54.7]}
2... Ne4 {[%clk 0:04:57.2]} 3. h4 {[%clk 0:04:52.4]} 3... c5 {[%clk 0:04:56.3]}
4. d5 {[%clk 0:04:49.5]} 4... Qb6 {[%clk 0:04:49.8]} 5. Nd2 {[%clk 0:04:42.4]}
5... Nxg5 {[%clk 0:04:42.1]} 6. hxg5 {[%clk 0:04:40]} 6... Qxb2 {[%clk
0:04:29.1]} 7. e3 {[%clk 0:04:22.8]} 7... g6 {[%clk 0:04:22.8]} 8. Ngf3 {[%clk
0:04:02.1]} 8... Bg7 {[%clk 0:04:20.7]} 9. Rb1 {[%clk 0:03:58.5]} 9... Qxa2
{[%clk 0:04:18.2]} 10. Nc4 {[%clk 0:03:31.9]} 10... Bc3+ {[%clk 0:04:11.4]} 11.
Nfd2 {[%clk 0:03:30.4]} 11... d6 {[%clk 0:03:32.3]} 12. Be2 {[%clk 0:03:03.9]}
12... Bf5 {[%clk 0:03:28]} 13. e4 {[%clk 0:02:57.8]} 13... Bxe4 {[%clk
0:03:26.6]} 14. O-O {[%clk 0:02:52.8]} 14... Bxc2 {[%clk 0:03:20.6]} 15. Nxd6+
{[%clk 0:02:25.6]} 15... exd6 {[%clk 0:02:48.8]} 16. Bb5+ {[%clk 0:02:23.3]}
16... Kf8 {[%clk 0:02:44.5]} 17. Qe2 {[%clk 0:02:17.7]} 17... Bxb1 {[%clk
0:02:37.1]} 18. Rxb1 {[%clk 0:01:06.6]} 18... Qxd2 {[%clk 0:02:30.5]} 19. Qe8+
{[%clk 0:00:48]} 19... Kg7 {[%clk 0:02:28.9]} 20. Qe7 {[%clk 0:00:47.4]} 20...
Bd4 {[%clk 0:02:20.3]} 21. Rf1 {[%clk 0:00:36.8]} 21... Na6 {[%clk 0:02:10.7]}
22. Qxb7 {[%clk 0:00:34.4]} 22... Nb4 {[%clk 0:02:08.4]} 23. Kh1 {[%clk
0:00:28.6]} 23... Qxg5 {[%clk 0:02:01.2]} 24. Qd7 {[%clk 0:00:16]} 24... Qh4+
{[%clk 0:01:54]} 25. Kg1 {[%clk 0:00:13.8]} 25... Rhe8 {[%clk 0:01:47.6]} 26.
Qh3 {[%clk 0:00:11.3]} 26... Qxh3 {[%clk 0:01:45.2]} 27. gxh3 {[%clk 0:00:10.1]}
27... Re5 {[%clk 0:01:41.8]} 28. Bc6 {[%clk 0:00:08.3]} 28... Nxc6 {[%clk
0:01:40.1]} 29. dxc6 {[%clk 0:00:07.1]} 29... Rc8 {[%clk 0:01:37.7]} 30. Kg2
{[%clk 0:00:03.6]} 30... Rxc6 {[%clk 0:01:36.5]} 31. Kh2 {[%clk 0:00:02.8]}
31... Rb6 {[%clk 0:01:35]} 32. f4 {[%clk 0:00:02.5]} 32... Re3 {[%clk
0:01:32.4]} 33. h4 {[%clk 0:00:02.1]} 33... Rb2+ {[%clk 0:01:31.1]} 0-1

[Event "Live Chess"]
[Site "Chess.com"]
[Date "2024.06.01"]
[Round "-"]
[White "Dhaydon19"]
[Black "grillage"]
[Result "1-0"]
[WhiteElo "2696"]
[BlackElo "1870"]
[TimeControl "300"]
[EndTime "12:27:22 PDT"]
[Termination "Dhaydon19 won on time"]

1. d3 {[%clk 0:04:58.2]} 1... Nf6 {[%clk 0:04:49.9]} 2. Nf3 {[%clk 0:04:57.2]}
2... c5 {[%clk 0:04:47.6]} 3. g3 {[%clk 0:04:57]} 3... Nc6 {[%clk 0:04:46.4]} 4.
Bg2 {[%clk 0:04:56.7]} 4... g6 {[%clk 0:04:43.6]} 5. O-O {[%clk 0:04:56.4]} 5...
Bg7 {[%clk 0:04:43.1]} 6. c3 {[%clk 0:04:55.9]} 6... O-O {[%clk 0:04:42.5]} 7.
Nbd2 {[%clk 0:04:55.6]} 7... d6 {[%clk 0:04:40.8]} 8. Qc2 {[%clk 0:04:55.5]}
8... Rb8 {[%clk 0:04:36.7]} 9. e4 {[%clk 0:04:55.1]} 9... Bd7 {[%clk 0:04:34.9]}
10. Re1 {[%clk 0:04:53.7]} 10... b5 {[%clk 0:04:33.7]} 11. a3 {[%clk 0:04:52.5]}
11... a5 {[%clk 0:04:32.1]} 12. e5 {[%clk 0:04:51]} 12... Nxe5 {[%clk
0:04:27.5]} 13. Nxe5 {[%clk 0:04:50]} 13... dxe5 {[%clk 0:04:26.4]} 14. Rxe5
{[%clk 0:04:49.7]} 14... Rc8 {[%clk 0:04:05.4]} 15. Nb3 {[%clk 0:04:28.5]} 15...
c4 {[%clk 0:03:56.9]} 16. dxc4 {[%clk 0:04:25.9]} 16... bxc4 {[%clk 0:03:55.8]}
17. Nd4 {[%clk 0:04:24.5]} 17... Ng4 {[%clk 0:03:45.5]} 18. Re1 {[%clk 0:04:20]}
18... e5 {[%clk 0:03:27.5]} 19. Nf3 {[%clk 0:03:39.2]} 19... Bf5 {[%clk
0:03:22]} 20. Qd2 {[%clk 0:03:38.1]} 20... Qb6 {[%clk 0:03:20.5]} 21. h3 {[%clk
0:03:29.4]} 21... Rfd8 {[%clk 0:03:18.4]} 22. hxg4 {[%clk 0:03:20.5]} 22... Rxd2
{[%clk 0:03:15.5]} 23. Nxd2 {[%clk 0:03:19.4]} 23... Bxg4 {[%clk 0:03:13]} 24.
Ne4 {[%clk 0:03:16.4]} 24... Rd8 {[%clk 0:03:08.8]} 25. Be3 {[%clk 0:03:14.1]}
25... Qxb2 {[%clk 0:03:04.8]} 26. Reb1 {[%clk 0:03:11.7]} 26... Qe2 {[%clk
0:02:56]} 27. Re1 {[%clk 0:03:08.5]} 27... Qd3 {[%clk 0:02:53.8]} 28. Bg5 {[%clk
0:03:07.3]} 28... f6 {[%clk 0:02:45.8]} 29. Bxf6 {[%clk 0:03:00.4]} 29... Rb8
{[%clk 0:02:30.9]} 30. Bxg7 {[%clk 0:02:54.5]} 30... Kxg7 {[%clk 0:02:29.2]} 31.
Ra2 {[%clk 0:02:53]} 31... Rb1 {[%clk 0:02:26.6]} 32. Ra1 {[%clk 0:02:47.1]}
32... Rxa1 {[%clk 0:02:19.9]} 33. Rxa1 {[%clk 0:02:45.2]} 33... Bf5 {[%clk
0:02:18.8]} 34. Re1 {[%clk 0:02:30.8]} 34... Bxe4 {[%clk 0:02:16.3]} 35. Rxe4
{[%clk 0:02:29.9]} 35... Qxc3 {[%clk 0:02:15.4]} 36. Bf1 {[%clk 0:02:28.6]}
36... Qb2 {[%clk 0:02:04.8]} 37. Rxc4 {[%clk 0:02:21.8]} 37... Qxa3 {[%clk
0:02:01.9]} 38. Rc7+ {[%clk 0:02:21.3]} 38... Kh6 {[%clk 0:01:59.4]} 39. Bc4
{[%clk 0:02:17]} 39... Qd6 {[%clk 0:01:55.3]} 40. Rc8 {[%clk 0:02:00.4]} 40...
a4 {[%clk 0:01:52]} 41. Ra8 {[%clk 0:01:55.5]} 41... Qd4 {[%clk 0:01:46.2]} 42.
Bg8 {[%clk 0:01:50.6]} 42... a3 {[%clk 0:01:38]} 43. Kf1 {[%clk 0:01:41.2]}
43... Qd1+ {[%clk 0:01:35.3]} 44. Kg2 {[%clk 0:01:39.3]} 44... e4 {[%clk
0:01:30.4]} 45. Ra7 {[%clk 0:01:28.7]} 45... Qf3+ {[%clk 0:01:26.9]} 46. Kh3
{[%clk 0:01:26.7]} 46... Qh5+ {[%clk 0:01:20.4]} 47. Kg2 {[%clk 0:01:25]} 47...
Qf3+ {[%clk 0:01:19.2]} 48. Kh3 {[%clk 0:01:24]} 48... Qxf2 {[%clk 0:01:13.2]}
49. Rxh7+ {[%clk 0:01:22]} 49... Kg5 {[%clk 0:01:12.7]} 50. Rb7 {[%clk
0:01:13.9]} 50... a2 {[%clk 0:01:08.9]} 51. Bxa2 {[%clk 0:01:10.7]} 51... Qxa2
{[%clk 0:01:06.4]} 52. Rb5+ {[%clk 0:01:10.4]} 52... Kh6 {[%clk 0:01:04.6]} 53.
Re5 {[%clk 0:01:04.8]} 53... Qc4 {[%clk 0:01:01.9]} 54. Kg4 {[%clk 0:01:02.9]}
54... Qd3 {[%clk 0:01:00.8]} 55. Kh4 {[%clk 0:00:59.2]} 55... Qf3 {[%clk
0:00:57.9]} 56. Kh3 {[%clk 0:00:57.5]} 56... e3 {[%clk 0:00:56.5]} 57. Re8
{[%clk 0:00:55.3]} 57... e2 {[%clk 0:00:52]} 58. Kh4 {[%clk 0:00:50.8]} 58...
Qf6+ {[%clk 0:00:49.7]} 59. Kh3 {[%clk 0:00:49.4]} 59... Qf1+ {[%clk 0:00:46.8]}
60. Kg4 {[%clk 0:00:48.6]} 60... Qf5+ {[%clk 0:00:43.6]} 61. Kh4 {[%clk
0:00:47.3]} 61... Qf6+ {[%clk 0:00:40.4]} 62. Kh3 {[%clk 0:00:45.8]} 62... Kg5
{[%clk 0:00:38.7]} 63. Rxe2 {[%clk 0:00:43.5]} 63... Qf1+ {[%clk 0:00:35.7]} 64.
Rg2 {[%clk 0:00:42.1]} 64... Qh1+ {[%clk 0:00:32.3]} 65. Rh2 {[%clk 0:00:40.6]}
65... Qe4 {[%clk 0:00:30.9]} 66. Rg2 {[%clk 0:00:39.9]} 66... Qg4+ {[%clk
0:00:28.9]} 67. Kh2 {[%clk 0:00:39.2]} 67... Qe4 {[%clk 0:00:26.1]} 68. Ra2
{[%clk 0:00:38.2]} 68... Kh6 {[%clk 0:00:23.5]} 69. Rf2 {[%clk 0:00:37.4]} 69...
g5 {[%clk 0:00:21.9]} 70. Rg2 {[%clk 0:00:35.4]} 70... g4 {[%clk 0:00:20.1]} 71.
Rf2 {[%clk 0:00:34.6]} 71... Kg5 {[%clk 0:00:17.9]} 72. Ra2 {[%clk 0:00:34.1]}
72... Qe1 {[%clk 0:00:15.1]} 73. Rg2 {[%clk 0:00:33.5]} 73... Kf5 {[%clk
0:00:13.1]} 74. Ra2 {[%clk 0:00:32.8]} 74... Ke4 {[%clk 0:00:12]} 75. Ra4+
{[%clk 0:00:31.9]} 75... Kf3 {[%clk 0:00:10.4]} 76. Ra3+ {[%clk 0:00:31.5]}
76... Kf2 {[%clk 0:00:09.4]} 77. Ra2+ {[%clk 0:00:30]} 77... Kf1 {[%clk
0:00:08.7]} 78. Rg2 {[%clk 0:00:27.8]} 78... Qe8 {[%clk 0:00:03.8]} 79. Rg1+
{[%clk 0:00:26.5]} 79... Kf2 {[%clk 0:00:02.8]} 80. Rg2+ {[%clk 0:00:26.2]}
80... Kf3 {[%clk 0:00:02.1]} 81. Kg1 {[%clk 0:00:25.4]} 1-0

[Event "Live Chess"]
[Site "Chess.com"]
[Date "2024.06.01"]
[Round "-"]
[White "Pandreq"]
[Black "JanMur7"]
[Result "0-1"]
[WhiteElo "1144"]
[BlackElo "2301"]
[TimeControl "300"]
[EndTime "12:28:05 PDT"]
[Termination "JanMur7 won by resignation"]

1. d4 {[%clk 0:04:58.3]} 1... Nf6 {[%clk 0:04:58.7]} 2. c4 {[%clk 0:04:57.1]}
2... a6 {[%clk 0:04:58.3]} 3. Nc3 {[%clk 0:04:56.5]} 3... b5 {[%clk 0:04:57.9]}
4. e4 {[%clk 0:04:51.3]} 4... b4 {[%clk 0:04:55.5]} 5. e5 {[%clk 0:04:47.3]}
5... bxc3 {[%clk 0:04:54.4]} 6. exf6 {[%clk 0:04:46]} 6... cxb2 {[%clk
0:04:52.5]} 7. Bxb2 {[%clk 0:04:45]} 7... exf6 {[%clk 0:04:50.2]} 8. Be2 {[%clk
0:04:32]} 8... Bb4+ {[%clk 0:04:47.2]} 9. Kf1 {[%clk 0:04:27.7]} 9... O-O {[%clk
0:04:46.2]} 10. Bf3 {[%clk 0:04:25.3]} 10... Ra7 {[%clk 0:04:42.3]} 11. d5
{[%clk 0:04:21.8]} 11... Re8 {[%clk 0:04:40]} 12. Bd4 {[%clk 0:04:17.6]} 12...
Rb7 {[%clk 0:04:33.5]} 13. d6 {[%clk 0:04:08.6]} 13... Nc6 {[%clk 0:04:32.3]}
14. c5 {[%clk 0:04:04.2]} 14... cxd6 {[%clk 0:04:28.2]} 15. cxd6 {[%clk
0:04:02.2]} 15... Re1+ {[%clk 0:04:17.6]} 16. Qxe1 {[%clk 0:03:57.6]} 16... Bxe1
{[%clk 0:04:17.5]} 17. Kxe1 {[%clk 0:03:56.9]} 17... Nxd4 {[%clk 0:04:16.2]} 0-1

[Event "Live Chess"]
[Site "Chess.com"]
[Date "2024.06.01"]
[Round "-"]
[White "gmnorfolk"]
[Black "KeithArkell"]
[Result "1-0"]
[WhiteElo "2068"]
[BlackElo "2474"]
[TimeControl "300"]
[EndTime "12:28:16 PDT"]
[Termination "gmnorfolk won by resignation"]

1. Nf3 {[%clk 0:04:49.1]} 1... d5 {[%clk 0:04:58.5]} 2. d4 {[%clk 0:04:47.6]}
2... Bg4 {[%clk 0:04:52.6]} 3. Ne5 {[%clk 0:04:45.6]} 3... Bf5 {[%clk
0:04:50.5]} 4. c4 {[%clk 0:04:44.1]} 4... c6 {[%clk 0:04:49.2]} 5. Nc3 {[%clk
0:04:41.9]} 5... e6 {[%clk 0:04:47.6]} 6. g3 {[%clk 0:04:37.1]} 6... Nd7 {[%clk
0:04:46.7]} 7. Nxd7 {[%clk 0:04:34.1]} 7... Qxd7 {[%clk 0:04:45.6]} 8. Qb3
{[%clk 0:04:30.8]} 8... Nf6 {[%clk 0:04:43.9]} 9. Bg2 {[%clk 0:04:29.7]} 9...
Bd6 {[%clk 0:04:43]} 10. O-O {[%clk 0:04:23.8]} 10... O-O {[%clk 0:04:41.9]} 11.
Bg5 {[%clk 0:04:22.5]} 11... Ne4 {[%clk 0:04:40.3]} 12. Nxe4 {[%clk 0:04:20.9]}
12... Bxe4 {[%clk 0:04:39.7]} 13. f3 {[%clk 0:04:17.2]} 13... Bg6 {[%clk
0:04:38.5]} 14. e4 {[%clk 0:04:16.4]} 14... dxe4 {[%clk 0:04:34]} 15. fxe4
{[%clk 0:04:14.9]} 15... Be7 {[%clk 0:04:31.6]} 16. Be3 {[%clk 0:04:07.2]} 16...
Bf6 {[%clk 0:04:29.4]} 17. Rad1 {[%clk 0:03:57.7]} 17... Rfd8 {[%clk 0:04:27.8]}
18. e5 {[%clk 0:03:51.8]} 18... Be7 {[%clk 0:04:26.6]} 19. d5 {[%clk 0:03:49.2]}
19... cxd5 {[%clk 0:04:25.9]} 20. cxd5 {[%clk 0:03:48.4]} 20... exd5 {[%clk
0:04:25.3]} 21. Bxd5 {[%clk 0:03:45.4]} 21... Qe8 {[%clk 0:04:24.2]} 22. e6
{[%clk 0:03:14.9]} 22... fxe6 {[%clk 0:04:20]} 23. Bxb7 {[%clk 0:03:06.3]} 23...
Rxd1 {[%clk 0:04:14.9]} 24. Rxd1 {[%clk 0:02:53.4]} 24... Rd8 {[%clk 0:03:59]}
25. Rxd8 {[%clk 0:02:11.8]} 25... Qxd8 {[%clk 0:03:54.7]} 26. Qxe6+ {[%clk
0:02:03.3]} 26... Bf7 {[%clk 0:03:53]} 27. Qc8 {[%clk 0:01:55.1]} 27... Qxc8
{[%clk 0:03:52.3]} 28. Bxc8 {[%clk 0:01:54.2]} 28... Bxa2 {[%clk 0:03:45.9]} 29.
Bxa7 {[%clk 0:01:52.8]} 29... Bb3 {[%clk 0:03:33.2]} 30. Bd4 {[%clk 0:01:51.3]}
30... Kf7 {[%clk 0:03:18]} 31. Kf2 {[%clk 0:01:49.4]} 31... h5 {[%clk
0:03:15.3]} 32. Bb7 {[%clk 0:01:46.2]} 32... Ke6 {[%clk 0:03:13.2]} 33. Be4
{[%clk 0:01:44.2]} 33... g5 {[%clk 0:03:09.2]} 34. Be3 {[%clk 0:01:40.2]} 34...
h4 {[%clk 0:03:04.4]} 35. gxh4 {[%clk 0:01:36]} 35... gxh4 {[%clk 0:03:03.3]}
36. Bd4 {[%clk 0:01:31.7]} 36... Bd6 {[%clk 0:02:58.2]} 37. h3 {[%clk
0:01:28.4]} 37... Bg3+ {[%clk 0:02:54.2]} 38. Kf3 {[%clk 0:01:24.4]} 38... Bd1+
{[%clk 0:02:53]} 39. Kg2 {[%clk 0:01:23.5]} 39... Bb3 {[%clk 0:02:51.3]} 40. Bf2
{[%clk 0:01:20.9]} 40... Bxf2 {[%clk 0:02:41.4]} 41. Kxf2 {[%clk 0:01:19.9]}
41... Ke5 {[%clk 0:02:40.9]} 42. Ke3 {[%clk 0:01:12.3]} 42... Be6 {[%clk
0:02:39.9]} 43. Bg2 {[%clk 0:01:10.9]} 43... Bb3 {[%clk 0:02:39]} 44. Bf1 {[%clk
0:01:06.2]} 44... Kf5 {[%clk 0:02:31.7]} 45. Be2 {[%clk 0:01:03.5]} 45... Ke5
{[%clk 0:02:30.4]} 46. Bf3 {[%clk 0:01:00.6]} 46... Kf5 {[%clk 0:02:29.4]} 47.
Kd4 {[%clk 0:00:56]} 47... Kf4 {[%clk 0:02:28.5]} 48. Bg4 {[%clk 0:00:55.1]}
48... Kg3 {[%clk 0:02:27.3]} 49. Kc3 {[%clk 0:00:53.9]} 49... Bd5 {[%clk
0:02:24.7]} 50. b4 {[%clk 0:00:52.8]} 50... Kf4 {[%clk 0:02:14.8]} 51. Kd4
{[%clk 0:00:50.8]} 51... Bb7 {[%clk 0:02:11.1]} 52. Kc5 {[%clk 0:00:49.8]} 52...
Ke5 {[%clk 0:02:10.1]} 53. Bd7 {[%clk 0:00:48.9]} 53... Bg2 {[%clk 0:02:04.9]}
54. b5 {[%clk 0:00:47.5]} 54... Kf6 {[%clk 0:02:03.5]} 55. Kd6 {[%clk
0:00:39.6]} 55... Kf7 {[%clk 0:01:57.3]} 56. b6 {[%clk 0:00:37.9]} 56... Bb7
{[%clk 0:01:52.4]} 57. Bc6 {[%clk 0:00:34.6]} 57... Ba6 {[%clk 0:01:50.2]} 58.
Bb5 {[%clk 0:00:32.7]} 58... Bc8 {[%clk 0:01:47.7]} 59. Kc7 {[%clk 0:00:29.7]}
1-0

[Event "Live Chess"]
[Site "Chess.com"]
[Date "2024.06.01"]
[Round "-"]
[White "Queensandpawns"]
[Black "Bob2pen"]
[Result "1-0"]
[WhiteElo "2388"]
[BlackElo "1916"]
[TimeControl "300"]
[EndTime "12:28:17 PDT"]
[Termination "Queensandpawns won by resignation"]

1. e4 {[%clk 0:04:59.4]} 1... e6 {[%clk 0:04:58.3]} 2. d4 {[%clk 0:04:57]} 2...
d5 {[%clk 0:04:57.4]} 3. Nd2 {[%clk 0:04:56.9]} 3... Nf6 {[%clk 0:04:54.4]} 4.
e5 {[%clk 0:04:55.7]} 4... Nfd7 {[%clk 0:04:53.4]} 5. Ne2 {[%clk 0:04:54.6]}
5... c5 {[%clk 0:04:51.9]} 6. c3 {[%clk 0:04:53.8]} 6... Nc6 {[%clk 0:04:51]} 7.
Nf3 {[%clk 0:04:53.4]} 7... f6 {[%clk 0:04:45.5]} 8. exf6 {[%clk 0:04:51.8]}
8... Nxf6 {[%clk 0:04:43.7]} 9. dxc5 {[%clk 0:04:51.7]} 9... Bxc5 {[%clk
0:04:42.4]} 10. Ned4 {[%clk 0:04:51.6]} 10... Nxd4 {[%clk 0:04:39.7]} 11. Nxd4
{[%clk 0:04:51.5]} 11... O-O {[%clk 0:04:37.8]} 12. Bd3 {[%clk 0:04:49.8]} 12...
e5 {[%clk 0:04:32.7]} 13. Nb3 {[%clk 0:04:47.4]} 13... Bxf2+ {[%clk 0:04:22.8]}
14. Kxf2 {[%clk 0:04:46.1]} 14... Ng4+ {[%clk 0:04:20.2]} 15. Ke1 {[%clk
0:04:42.4]} 15... Qb6 {[%clk 0:04:04.8]} 16. Qe2 {[%clk 0:04:33.9]} 16... Nf2
{[%clk 0:03:55.1]} 17. Rf1 {[%clk 0:04:30.9]} 17... Bg4 {[%clk 0:03:52.7]} 18.
Be3 {[%clk 0:04:12.8]} 18... Nxd3+ {[%clk 0:03:43.6]} 19. Qxd3 {[%clk
0:04:11.4]} 19... Rxf1+ {[%clk 0:03:41.6]} 20. Kxf1 {[%clk 0:04:10.1]} 20... Qe6
{[%clk 0:03:24.3]} 21. Kg1 {[%clk 0:04:07.9]} 21... Rd8 {[%clk 0:03:21.6]} 22.
Re1 {[%clk 0:04:05.1]} 22... Bf5 {[%clk 0:03:19.8]} 23. Qd2 {[%clk 0:04:04]}
23... Be4 {[%clk 0:03:18]} 24. Bf2 {[%clk 0:04:00.9]} 24... Qf5 {[%clk
0:03:11.5]} 25. Nc5 {[%clk 0:03:56.4]} 25... Rf8 {[%clk 0:03:03]} 26. Nxe4
{[%clk 0:03:54.8]} 26... dxe4 {[%clk 0:03:01.9]} 27. Qe3 {[%clk 0:03:54.7]} 1-0

[Event "Live Chess"]
[Site "Chess.com"]
[Date "2024.06.01"]
[Round "-"]
[White "booktrunk"]
[Black "cymbalshift"]
[Result "0-1"]
[WhiteElo "1367"]
[BlackElo "1697"]
[TimeControl "300"]
[EndTime "12:28:19 PDT"]
[Termination "cymbalshift won by resignation"]

1. d4 {[%clk 0:04:52.3]} 1... Nf6 {[%clk 0:04:52.4]} 2. Nc3 {[%clk 0:04:49.9]}
2... d6 {[%clk 0:04:50.1]} 3. Bf4 {[%clk 0:04:49.8]} 3... g6 {[%clk 0:04:49.5]}
4. e4 {[%clk 0:04:45.4]} 4... Bg7 {[%clk 0:04:48]} 5. e5 {[%clk 0:04:43.1]} 5...
dxe5 {[%clk 0:04:38.8]} 6. Bxe5 {[%clk 0:04:43]} 6... O-O {[%clk 0:04:34.1]} 7.
Qd2 {[%clk 0:04:39.5]} 7... Nc6 {[%clk 0:04:31.8]} 8. Bg3 {[%clk 0:04:35.2]}
8... Qxd4 {[%clk 0:04:28.3]} 9. Qxd4 {[%clk 0:04:33.3]} 9... Nxd4 {[%clk
0:04:27.6]} 10. O-O-O {[%clk 0:04:30.9]} 10... Nh5 {[%clk 0:04:26.1]} 11. Bxc7
{[%clk 0:04:24.6]} 11... Bf5 {[%clk 0:04:23.5]} 12. f3 {[%clk 0:04:16.4]} 12...
Bxc2 {[%clk 0:04:17.1]} 13. Rd2 {[%clk 0:04:12.7]} 13... Bh6 {[%clk 0:04:00.3]}
14. f4 {[%clk 0:04:04.6]} 14... Nxf4 {[%clk 0:03:54]} 15. Rxc2 {[%clk
0:04:03.4]} 15... Nxc2 {[%clk 0:03:50.4]} 16. Kxc2 {[%clk 0:04:01.9]} 16... Rac8
{[%clk 0:03:43.3]} 17. Bxf4 {[%clk 0:03:59]} 17... Bxf4 {[%clk 0:03:43.2]} 18.
g3 {[%clk 0:03:57.6]} 18... Bh6 {[%clk 0:03:37.1]} 19. Ne2 {[%clk 0:03:56.2]}
19... Rfd8 {[%clk 0:03:34.4]} 20. Bg2 {[%clk 0:03:54.4]} 20... Rd2+ {[%clk
0:03:27.7]} 21. Kb3 {[%clk 0:03:44.3]} 21... e5 {[%clk 0:03:19.2]} 22. Bf3
{[%clk 0:03:41.6]} 22... f5 {[%clk 0:03:17.1]} 23. Rd1 {[%clk 0:03:36.1]} 23...
e4 {[%clk 0:03:10.7]} 24. Rxd2 {[%clk 0:03:33.6]} 24... Bxd2 {[%clk 0:03:09.3]}
25. Bg2 {[%clk 0:03:30.8]} 25... a6 {[%clk 0:03:06.1]} 26. Kc2 {[%clk
0:03:29.7]} 26... Bh6 {[%clk 0:03:01.6]} 27. Kb3 {[%clk 0:03:23.6]} 27... b5
{[%clk 0:02:59.2]} 28. Nd5 {[%clk 0:03:20]} 28... Kf7 {[%clk 0:02:54.8]} 29.
Nec3 {[%clk 0:03:11]} 29... g5 {[%clk 0:02:48.2]} 30. h4 {[%clk 0:03:08.9]}
30... gxh4 {[%clk 0:02:42.9]} 31. gxh4 {[%clk 0:03:07.2]} 31... Ke6 {[%clk
0:02:42.4]} 32. Kb4 {[%clk 0:02:54.3]} 32... Bd2 {[%clk 0:02:35.4]} 33. a3
{[%clk 0:02:47.3]} 33... e3 {[%clk 0:02:25.2]} 34. Bf3 {[%clk 0:02:44.8]} 34...
Rc4+ {[%clk 0:02:19]} 35. Kb3 {[%clk 0:02:40.8]} 35... Rxh4 {[%clk 0:02:15.6]}
36. Be2 {[%clk 0:02:35.8]} 36... Rh2 {[%clk 0:02:12.4]} 37. Nf4+ {[%clk
0:02:34.1]} 37... Ke5 {[%clk 0:02:06.9]} 38. Nd3+ {[%clk 0:02:31.9]} 38... Kf6
{[%clk 0:02:03.4]} 39. Kc2 {[%clk 0:02:29.9]} 39... Bxc3 {[%clk 0:01:58.6]} 40.
Kxc3 {[%clk 0:02:27.1]} 40... Rxe2 {[%clk 0:01:57.5]} 0-1